Cogmind - Beta 17 @@@ ROGUE MODE // 2026.07.13 @ 16:46:55 Player: osman sinnoks Result: Destroyed by P-60 Hacker with Shock Rifle Performance ------------- Evolutions (2) 1000 Regions Visited (6) 1200 Robots Destroyed (69) 345 Value Destroyed (1989) 1989 Prototype IDs (3) 60 Alien Tech Used (0) 0 Bonus (610) 610 TOTAL SCORE: 5204 Bonus ------- Follower Combat Kills 110 Entered Garrisons 200 Aligned with FarCom 300 Cogmind --------- Core Integrity 0/550 Matter 300/300 Energy 21/100 System Corruption 8% Temperature Cool (29) Movement Core (800) Ox15 Location -8/Garrison Parts ------- > --- POWER (1) -------- (None) > --- PROPULSION (3) --- (None) > --- UTILITY (4) ------ High-capacity Storage Unit Improved Targeting Computer > --- WEAPON (3) ------- Heavy Ion Cannon > --- INVENTORY (20) --- Reinforced Ion Engine Light Treads Light Treads Improved Heat Sink Compact Matter Pod (150) Trap Scanner Improved Targeting Computer Matter Filter Light Armor Plating Insulated Plating Hardlight Generator Heavy EM Shotgun Particle Gun Particle Gun Heavy Ion Cannon Blade Saw Peak State ------------ > --- POWER ------------ Light Angular Momentum Engine > --- PROPULSION ------- Light Treads Light Treads Light Treads > --- UTILITY ---------- Improved Heat Sink High-capacity Storage Unit Improved Targeting Computer Insulated Plating > --- WEAPON ----------- Heavy EM Shotgun Pulse Rifle Improved Assault Rifle > --- INVENTORY -------- Reinforced Ion Engine Light Nuclear Core Light Treads Light Treads Improved Heat Sink Compact Matter Pod Trap Scanner Improved Targeting Computer Matter Filter Light Armor Plating Insulated Plating Hardlight Generator Heavy EM Shotgun Heavy EM Shotgun Particle Gun Particle Gun Heavy Ion Cannon Heavy Ion Cannon Blade Saw [Rating: 32] Favorites ----------- Power Ion Engine Engine Ion Engine Power Core Light Nuclear Core Propulsion Light Treads Treads Light Treads Utility Improved Targeting Computer Device Seismic Detector Storage Large Storage Unit Processor Improved Targeting Computer Protection Light Armor Plating Weapon Light Cannon Energy Gun Heavy EM Shotgun Energy Cannon Heavy Ion Cannon Ballistic Gun Improved Assault Rifle Ballistic Cannon Light Cannon Impact Weapon Flail Slashing Weapon Blade Saw Build | -11 -10 -10 -10 -9 -8 -8 ------- Run | Yrd Mat Min Exi Min Mat Gar Slots Evolved 4 | . . . . . 4 . Power . | . . . . . . . Propulsion 1 | . . . . . 1 . Utility 2 | . . . . . 2 . Weapon 1 | . . . . . 1 . Parts Attached 40 | 7 3 . 1 4 18 7 Power 5 | 1 . . . 1 2 1 Engine 4 | 1 . . . 1 2 . Core 1 | . . . . . . 1 Reactor . | . . . . . . . Propulsion 8 | 2 . . . 1 5 . Treads 8 | 2 . . . 1 5 . Leg . | . . . . . . . Wheel . | . . . . . . . Hover . | . . . . . . . Flight . | . . . . . . . Utility 10 | 2 1 . 1 2 3 1 Device 3 | 1 . . 1 . 1 . Storage 3 | 1 1 . . 1 . . Processor 2 | . . . . . 2 . Hackware . | . . . . . . . Protection 2 | . . . . 1 . 1 Artifact . | . . . . . . . Weapon 17 | 2 2 . . . 8 5 Energy Gun 7 | 2 . . . . 2 3 Energy Cannon 1 | . . . . . . 1 Ballistic Gun 3 | . . . . . 3 . Ballistic Cannon 4 | . 2 . . . 2 . Launcher . | . . . . . . . Special Weapon . | . . . . . . . Impact Weapon 1 | . . . . . 1 . Slashing Weapon 1 | . . . . . . 1 Piercing Weapon . | . . . . . . . Special Melee Weapon . | . . . . . . . Unidentified Prototypes 3 | . . . 1 . 2 . Parts Lost 18 | . . . . . 3 15 Power 2 | . . . . . . 2 Propulsion 5 | . . . . . . 5 Utility 3 | . . . . . . 3 Weapon 8 | . . . . . 3 5 Highest Loss Streak 12 | . . . . . 1 12 To Critical Strikes . | . . . . . . . Average Backups 12 | 1 5 9 9 12 18 19 Power 1 | . 1 1 1 2 3 1 Propulsion 3 | . . 4 4 5 4 2 Utility 3 | . 1 1 1 1 8 8 Weapon 2 | . 2 3 3 2 1 5 Tool/Special . | . . . . . . . Unused Backups 16 | . . . . 1 3 12 Power 2 | . . . . . 1 1 Propulsion 2 | . . . . . 2 . Utility 8 | . . . . . . 8 Weapon 4 | . . . . 1 . 3 Tool/Special . | . . . . . . . Average Slot Usage (%) 96 | . 100 100 92 98 91 95 Engine 11 | . 14 14 14 14 4 8 Treads 27 | . 28 28 28 28 26 24 Device 7 | . 14 14 7 . 8 8 Storage 12 | . 14 14 14 14 9 9 Processor 5 | . . . . . 14 17 Protection 3 | . . . . 12 2 . Energy Gun 4 | . 7 . . . 1 17 Ballistic Gun 2 | . . . . . 4 8 Ballistic Cannon 19 | . 20 28 28 28 15 . Peak Build Rating 32 | 7 7 7 12 11 31 32 Average Rating 13 | 4 7 7 7 9 21 28 On Entrance 10 | . 7 7 7 8 11 31 Avg Prop Armor Cover (%) . | . . . . . . . Naked Turns . | . . . . . . . Heaviest Build 60 | 15 32 32 32 54 60 60 Greatest Support 60 | 40 40 40 40 40 60 60 Greatest Overweight (x) 2 | . . . . 1 1 2 Average Overweight (x) . | . . . . . . . Largest Inventory Capacity 20 | 8 15 15 15 20 20 20 Average Capacity 15 | 7 9 15 15 15 20 20 Most Carried 20 | 3 9 9 11 15 20 20 Average Carried 12 | 1 5 9 9 12 18 19 Final Capacity 20 | 8 15 15 15 20 20 20 Final Carried 20 | 2 9 9 11 15 20 16 Class Distribution -------------------- 78% | Mutant 11% | Gunner 6% | Skirmisher 4% | Scavenger-Gunner Dominant Class ---------------- Mutant | -10/Materials Mutant | -10/Mines Mutant | -10/Exiles Mutant | -9/Mines Mutant | -8/Materials Gunner | -8/Garrison Resources | -11 -10 -10 -10 -9 -8 -8 ----------- Run | Yrd Mat Min Exi Min Mat Gar Matter Collected 1813 | 270 349 . . 295 759 140 Remotely . | . . . . . . . Salvage Created 2346 | 158 482 . . 347 820 539 Parts 133 | 13 35 . . 22 40 23 Haulers Intercepted 3 | . 1 . . . 2 . Recyclers Shooed 2 | 1 . . . . 1 . Parts Field Recycled . | . . . . . . . Retrieved Matter . | . . . . . . . Parts Self-Destructed . | . . . . . . . Prevented . | . . . . . . . Parts Restored . | . . . . . . . Kills | -11 -10 -10 -10 -9 -8 -8 ------- Run | Yrd Mat Min Exi Min Mat Gar Combat Hostiles Destroyed 49 | . 11 . . 11 18 9 Melee 1 | . . . . . . 1 Guns 19 | . 3 . . . 9 7 Cannons 28 | . 7 . . 11 9 1 AOE 1 | . 1 . . . . . Classes Destroyed 14 | 2 5 . . 1 3 3 Worker 2 | . 2 . . . . . Builder 1 | . . . . . 1 . Tunneler 6 | 3 . . . 3 . . Hauler 3 | . 1 . . . 2 . Recycler 5 | 1 1 . . . 3 . Watcher 3 | . 2 . . . 1 . Swarmer 16 | . 6 . . 3 7 . Cutter 2 | . . . . . 2 . Grunt 19 | . 5 . . 7 7 . Brawler 1 | . . . . 1 . . Duelist 4 | . . . . . . 4 Specialist 4 | . . . . . 2 2 Hunter 1 | . . . . . . 1 Programmer 2 | . . . . . . 2 Best Kill Streak 6 | 4 6 . . 4 5 3 Combat Bots Only 3 | . 3 . . 3 3 3 Max Kills in Single Turn 2 | 1 1 . . 1 2 1 Gunslinging 1 | . . . . . 1 . Exploded 1 | . 1 . . . . . Melee 1 | . . . . . . 1 Uniques/NPCs Destroyed . | . . . . . . . Combat | -11 -10 -10 -10 -9 -8 -8 -------- Run | Yrd Mat Min Exi Min Mat Gar Hostile Shots Fired 327 | . 44 . . 39 120 124 Missed 79 | . 10 . . 11 36 22 Hits 248 | . 34 . . 28 84 102 Melee 14 | . . . . . 10 4 Projectile 234 | . 34 . . 28 74 98 AOE 2 | . . . . . 2 . Critical Strikes 13 | . 1 . . . 8 4 Damage Taken 3605 | 34 344 . . 301 1288 1638 Core 672 | . 49 . . 67 192 364 Absorbed by Shields . | . . . . . . . Ignored by Resistances 75 | . . . . . . 75 Core Remaining (%) 76 | 100 . . . 53 . . Volleys Fired 193 | 7 40 . . 23 84 39 Largest 3 | 2 2 . . 2 3 3 Hottest 163 | 80 80 . . 60 90 163 Shots Fired 404 | 14 80 . . 46 167 97 Gun 226 | 14 36 . . . 80 96 Cannon 178 | . 44 . . 46 87 1 Launcher . | . . . . . . . Special . | . . . . . . . Kinetic 278 | . 44 . . 46 163 25 Thermal 40 | . . . . . 4 36 Explosive . | . . . . . . . Electromagnetic 86 | 14 36 . . . . 36 Robot Hit Streak 32 | 8 8 . . 5 17 32 Robot Miss Streak 9 | 3 9 . . 3 4 3 Penetration Max . | . . . . . . . Secondary Targets 2 | . . . . . 1 1 Max Gunslinging Chain 1 | . . . . . 1 1 Shots Hit Robots 260 | 8 36 . . 27 110 79 Core Hits 118 | 5 20 1 . 14 46 32 Critical Kills 1 | . . . . . 1 . Critical Parts Destroyed . | . . . . . . . Critical Strikes 10 | . 1 . . 2 6 1 Burn 1 | . . . . . . 1 Destroy 1 | . . . . . 1 . Blast 8 | . 1 . . 2 5 . Melee Attacks 4 | . . . . . 1 3 Impact 1 | . . . . . 1 . Slashing 3 | . . . . . . 3 Piercing . | . . . . . . . Sneak Attacks . | . . . . . . . Combat Hostiles . | . . . . . . . Follow-up Attacks . | . . . . . . . Damage Inflicted 4277 | 182 631 7 . 556 1686 1215 Guns 2317 | 135 228 . . . 779 1175 Cannons 1778 | . 316 . . 527 902 33 Explosions 126 | 47 79 . . . . . Melee . | . . . . . . . Ramming 56 | . 8 7 . 29 5 7 Kinetic 2740 | . 316 . . 527 1634 263 Thermal 667 | 47 79 . . . 47 494 Explosive . | . . . . . . . Electromagnetic 814 | 135 228 . . . . 451 Impact . | . . . . . . . Slashing . | . . . . . . . Piercing . | . . . . . . . Highest Corruption 8 | . 1 1 1 1 . 8 Average Corruption 1 | . 1 1 1 1 . 4 Corruption Purged . | . . . . . . . Corruption Blocked . | . . . . . . . Effects 18 | . 1 3 4 9 . 1 Message Errors 4 | . 1 1 . 2 . . Matter Fused 8 | . . 1 1 6 . . Energy Discharges 2 | . . 1 1 . . . Data Loss (minor) 3 | . . . 1 1 . 1 Alerts 1 | . . . 1 . . . Overload Shots . | . . . . . . . Overflow Damage 21 | . . . . . . 21 Projectiles . | . . . . . . . Explosions 21 | . . . . . . 21 Melee . | . . . . . . . Knockbacks 24 | . 1 1 . 7 15 . Impact 2 | . 1 1 . . . . Kinetic 21 | . . . . 7 14 . Secondary 1 | . . . . . 1 . Self-Inflicted Damage 128 | 34 9 . . . . 85 Shots 3 | 1 1 . . . . 1 Rammed 10 | . 2 2 . 3 1 2 Targets Rammed 12 | . 2 2 . 5 1 2 Kicked . | . . . . . . . Crushed 2 | . . . . 2 . . Highest Temperature 272 | 120 162 . . 150 3 272 Average Temperature 63 | 52 56 . . 57 3 73 Received Heat Transfer 876 | . 66 . . 126 441 243 Siege Activations . | . . . . . . . Martial Activations . | . . . . . . . Shielding Activations . | . . . . . . . Robots Disrupted . | . . . . . . . Combat Hostiles . | . . . . . . . Robots Corrupted . | . . . . . . . Combat Hostiles . | . . . . . . . Parts Fried 6 | . 1 . . . . 5 Impact Corruptions . | . . . . . . . Robots Melted . | . . . . . . . Combat Hostiles . | . . . . . . . Parts Melted 4 | . . . . . 1 3 Heat Transferred 1284 | . 100 . . . 111 1073 Parts Sabotaged . | . . . . . . . Parts Stolen . | . . . . . . . Parts Stripped . | . . . . . . . Power Chain Reactions 2 | 1 1 . . . . . Alert | -11 -10 -10 -10 -9 -8 -8 ------- Run | Yrd Mat Min Exi Min Mat Gar Maximum Alert Level 1 | . 1 . . . 1 1 Low Security (%) 85 | 100 94 100 . 100 88 32 Level 1 14 | . 5 . . . 11 67 Level 2 . | . . . . . . . Level 3 . | . . . . . . . Level 4 . | . . . . . . . Level 5 . | . . . . . . . High Security . | . . . . . . . Max Security . | . . . . . . . Peak Influence 358 | 20 213 25 . 94 219 358 Initial 128 | . . 25 . . 14 128 Average 86 | 3 111 2 . 23 75 238 Influence Increases 1573 | 20 375 . . 380 498 300 Destroy 0b10 Robot/C 1060 | . 220 . . 300 360 180 Destroy 0b10 Robot/NC 100 | 20 30 . . 15 35 . Destroy Leader 162 | . 46 . . 50 66 . Allied During Kill 15 | . . . . 15 . . Successful Hack 4 | . . . . . 4 . Disable Machine 45 | . 15 . . . 30 . Anti-Garrison Action 50 | . . . . . . 50 Destroy Structure 47 | . 4 . . . 3 40 Lose Combat Pursuer 90 | . 60 . . . . 30 Influence Decreases 1295 | 20 310 65 . 341 339 220 Entered New Map 135 | . . 40 . . 25 70 Time Decay 905 | 20 310 25 . 261 289 . Lost Part 175 | . . . . . 25 150 Lost Ally 80 | . . . . 80 . . Squads Dispatched 7 | . 1 1 . . 5 . Investigation 1 | . 1 . . . . . Extermination . | . . . . . . . Reinforcement 4 | . . . . . 4 . Assault 1 | . . 1 . . . . Garrison 1 | . . . . . 1 . Intercept . | . . . . . . . Searches Triggered . | . . . . . . . Construction Impeded . | . . . . . . . Haulers Reinforced . | . . . . . . . Active Scanning Responses . | . . . . . . . Cargo Convoy Interrupts . | . . . . . . . Stealth | -11 -10 -10 -10 -9 -8 -8 --------- Run | Yrd Mat Min Exi Min Mat Gar Distress Signals 5 | . 3 . . . 2 . Communications Jammed . | . . . . . . . Distress Signals . | . . . . . . . Times Spotted 76 | . 25 . . 12 24 15 Peak Tracking Total 6 | . 6 . . 4 4 6 Tactical Retreats 4 | . 2 . . . . 2 Traps | -11 -10 -10 -10 -9 -8 -8 ------- Run | Yrd Mat Min Exi Min Mat Gar Traps Triggered 5 | . 3 . . . . 2 Indirectly . | . . . . . . . Trap Hack Attempts . | . . . . . . . Triggered . | . . . . . . . Disarmed . | . . . . . . . Reprogrammed . | . . . . . . . Reused . | . . . . . . . Traps Extracted . | . . . . . . . Installed . | . . . . . . . Triggered . | . . . . . . . Machines | -11 -10 -10 -10 -9 -8 -8 ---------- Run | Yrd Mat Min Exi Min Mat Gar Machines Disabled 5 | . 1 . . . 2 2 Max in Single Turn 2 | . 1 . . . 1 2 Garrison Relay 1 | . . . . . . 1 Phase Generator 1 | . . . . . . 1 Machines Repaired . | . . . . . . . Machines Dismantled . | . . . . . . . Machines Sabotaged . | . . . . . . . Overloaded Fab Kills . | . . . . . . . Hacking | -11 -10 -10 -10 -9 -8 -8 --------- Run | Yrd Mat Min Exi Min Mat Gar Machines Accessed 2 | . . . . . 2 . Terminals . | . . . . . . . Fabricators . | . . . . . . . Repair Stations . | . . . . . . . Recycling Units . | . . . . . . . Scanalyzers 1 | . . . . . 1 . Garrison Access 1 | . . . . . 1 . Total Hacks 3 | . . . . . 3 . Successful 3 | . . . . . 3 . Failed . | . . . . . . . Catastrophic . | . . . . . . . Database Lockouts . | . . . . . . . Manual 1 | . . . 1 . . . Terminals . | . . . . . . . Fabricators . | . . . . . . . Repair Stations . | . . . . . . . Recycling Units . | . . . . . . . Scanalyzers 2 | . . . . . 2 . Garrison Access 1 | . . . . . 1 . Terminal Hacks . | . . . . . . . Fabricator Hacks . | . . . . . . . Repair Station Hacks . | . . . . . . . Recycling Unit Hacks . | . . . . . . . Scanalyzer 2 | . . . . . 2 . Retrieve Study 2 | . . . . . 2 . Garrison Access Hacks 1 | . . . . . 1 . Unlock Access 1 | . . . . . 1 . Unauthorized Hacks . | . . . . . . . Terminals . | . . . . . . . Fabricators . | . . . . . . . Repair Stations . | . . . . . . . Recycling Units . | . . . . . . . Scanalyzers . | . . . . . . . Garrison Access . | . . . . . . . Data Cores Recovered . | . . . . . . . Used . | . . . . . . . Hacking Detections 1 | . . . . . 1 . Full Trace Events . | . . . . . . . Feedback Events . | . . . . . . . Feedback Blocked . | . . . . . . . Robot Schematics Acquired . | . . . . . . . Robots Built . | . . . . . . . Authchips . | . . . . . . . Time . | . . . . . . . Total Robot Build Rating . | . . . . . . . Part Schematics Acquired . | . . . . . . . Parts Built . | . . . . . . . Authchips . | . . . . . . . Time . | . . . . . . . Total Part Build Rating . | . . . . . . . Part Studies Acquired 2 | . . . . . 2 . Parts Repaired . | . . . . . . . Time . | . . . . . . . Parts Recycled . | . . . . . . . Recycled Matter . | . . . . . . . Retrieved Matter . | . . . . . . . Retrieved Components . | . . . . . . . Parts Scanalyzed . | . . . . . . . Part Schematics Acquired . | . . . . . . . Parts Damaged . | . . . . . . . Bothacking | -11 -10 -10 -10 -9 -8 -8 ------------ Run | Yrd Mat Min Exi Min Mat Gar Used RIF Installer . | . . . . . . . Robots Hacked . | . . . . . . . Non-combat . | . . . . . . . Combat . | . . . . . . . Robot Hacks Applied . | . . . . . . . Relay Couplers Released 4 | . . . . . . 4 Machine Destruction 4 | . . . . . . 4 Fabnet Peak Effective % . | . . . . . . . Robots Rewired . | . . . . . . . Allies Hacked . | . . . . . . . Hacks Repelled . | . . . . . . . Allies | -11 -10 -10 -10 -9 -8 -8 -------- Run | Yrd Mat Min Exi Min Mat Gar Total Allies 5 | . . 1 . 4 . . Largest Group 4 | . . 1 1 4 . . Highest-Rated Group 71 | . . 31 31 71 . . Highest-Rated Ally 31 | . . 31 31 31 . . Total Orders . | . . . . . . . Ally Attacks 26 | . . . . 26 . . Total Damage 340 | . . . . 340 . . Kills 4 | . . . . 4 . . Allies Corrupted . | . . . . . . . Allies Melted . | . . . . . . . Intel | -11 -10 -10 -10 -9 -8 -8 ------- Run | Yrd Mat Min Exi Min Mat Gar Active Infowar (turns) 1324 | 24 798 324 178 . . . Seismic 1324 | 24 798 324 178 . . . Robot Analysis Total . | . . . . . . . Derelict Logs Recovered 2 | . . 2 . . . . Drone Launches . | . . . . . . . Drone Recoveries . | . . . . . . . Exploration | -11 -10 -10 -10 -9 -8 -8 ------------- Run | Yrd Mat Min Exi Min Mat Gar Turns Passed 3888 | 112 798 324 361 969 750 574 Spaces Moved 1853 | 52 406 201 223 493 233 245 Core 6 | 6 . . . . . . Treads 1847 | 46 406 201 223 493 233 245 Legs . | . . . . . . . Wheels . | . . . . . . . Hover . | . . . . . . . Flight . | . . . . . . . Fastest Speed 50 | 50 160 160 160 160 160 160 Average Speed 160 | 147 160 160 160 160 162 164 Slowest Speed 240 | 160 160 160 160 240 225 240 Overloaded Moves . | . . . . . . . Propulsion Burnouts . | . . . . . . . Robots Hopped . | . . . . . . . Potential Cave-ins . | . . . . . . . Cave-ins Triggered . | . . . . . . . Exploration Rate (%) 45 | 3 58 56 60 89 21 30 Regions Visited 6 Branch Regions 3 Pre-discovered Areas 2 | . . 2 . . . . Known Exits Taken 1 | . . . . . 1 . Unknown Exits Taken 5 | 1 1 1 1 1 . . Scrap Searched 2 | . . . . 2 . . Spaces Dug . | . . . . . . . Terrain Destroyed 60 | 3 3 . . . . 54 Melee . | . . . . . . . Projectile . | . . . . . . . AOE 60 | 3 3 . . . . 54 Terrain Rammed . | . . . . . . . Walls Destroyed . | . . . . . . . Machines Disabled . | . . . . . . . Actions | -11 -10 -10 -10 -9 -8 -8 --------- Run | Yrd Mat Min Exi Min Mat Gar Total 2389 | 74 473 202 228 621 461 330 Wait 205 | . 10 . . 84 90 21 Move 1848 | 51 405 200 222 492 233 245 Hop . | . . . . . . . Pick Up 57 | 9 10 . 3 9 21 5 Fast Attach 5 | . . . . . 5 . Attach 29 | 7 . . 1 2 12 7 Detach . | . . . . . . . Swap 14 | . 3 . . 2 5 4 Drop 20 | . 3 . 2 4 9 2 Fire 193 | 7 40 . . 23 84 39 Melee 4 | . . . . . 1 3 Ram . | . . . . . . . Kick . | . . . . . . . Crush 12 | . 2 2 . 5 1 2 Escape Stasis 2 | . . . . . . 2 Rewire . | . . . . . . . Trap . | . . . . . . . Miscellaneous . | . . . . . . . Route ------- -11/Scrapyard -10/Materials (discovered 4 exits: [*Mat x2] / [*Min x2]) -10/Mines -10/Exiles -9/Mines -8/Materials (discovered 2 exits: Sto / Gar) -8/Garrison History --------- Turn | Location | Event 5 | -11/Scrapyard | Discovered new exit (range 15) 113 | -11/Scrapyard | Entered Materials 233 | -10/Materials | Discovered new exit (range 11) 304 | -10/Materials | Build established: Mutant 473 | -10/Materials | Discovered new exit (range 16) 785 | -10/Materials | Discovered new exit (range 11) 887 | -10/Materials | Discovered new exit (range 7) 911 | -10/Materials | Entered Mines 940 | -10/Mines | Learned location of Mines (-9) 1101 | -10/Mines | Learned location of Storage (-8) 1180 | -10/Mines | Met a Derelict testing a Signal Generator 1227 | -10/Mines | Deemed a non-threat by the Exiles lab entrance 1227 | -10/Mines | Discovered new exit (range 5) 1235 | -10/Mines | Entered Exiles 1235 | -10/Exiles | Accompanied by 1 ally 1274 | -10/Exiles | Met 8R-AWN 1303 | -10/Exiles | Met EX-HEX 1347 | -10/Exiles | Met EX-BIN 1367 | -10/Exiles | Aligned with FarCom system 1368 | -10/Exiles | Given EX-Vault access code 1405 | -10/Exiles | Opened EX-Vault 1414 | -10/Exiles | Found Prototype Device 1415 | -10/Exiles | Identified Skeleton Box 1422 | -10/Exiles | Found Prototype Leg 1425 | -10/Exiles | Found Prototype Leg 1458 | -10/Exiles | Warned to stay clear of 0b10 Research branches 1503 | -10/Exiles | Met EX-DEC 1576 | -10/Exiles | Discovered new exit (range 14) 1596 | -10/Exiles | Left Exiles lab with Potential Leg 1596 | -10/Exiles | Entered Mines 1596 | -9/Mines | Accompanied by 1 ally 1605 | -9/Mines | Assisted by bots powering up and referring to "LRC-V3" 1718 | -9/Mines | Lost 3 allies 2257 | -9/Mines | Received a Mining Laser from a helpful Derelict 2526 | -9/Mines | Discovered new exit (range 9) 2565 | -9/Mines | Entered Materials 2565 | -8/Materials | Evolved 4 slots: Propulsion x1, Utility x2, Weapon x1 2566 | -8/Materials | Identified exit to Storage 3126 | -8/Materials | Garrison activated, responded to threat 3315 | -8/Materials | Identified exit to Garrison 3315 | -8/Materials | Entered Garrison 3496 | -8/Garrison | Core integrity fell below 50% 3677 | -8/Garrison | Garrison Relay disabled 3745 | -8/Garrison | Phase Generator disabled 3881 | -8/Garrison | Core integrity fell below 20% 3889 | -8/Garrison | Destroyed by P-60 Hacker with Shock Rifle Last Messages --------------- 03854_ Lgt. Angular Momentum Engine destroyed. 03855_ P-60 Hacker resets P-60 Hacker, system corruption cleaned. 03860_ Hvy. EM Shotgun destroyed. 03860_ Critical hit (Burn: +37). 03862_ Slammed into P-60 Hacker. 03863_ Insulated Plating destroyed. 03864_ Slammed into P-60 Hacker. 03864_ P-60 Hacker destroyed. [Achievement: Fist Fight] 03865_ Acquired 11 matter. 03865_ Lgt. Treads+ destroyed. 03877_ Lgt. Nuclear Core destroyed. 03877_ Imp. Heat Sink destroyed. 03878_ Pulse Rifle destroyed. 03883_ Hvy. EM Shotgun destroyed. 03885_ System corrupted: Component data lost. 03885_ Acquired 10 matter. 03885_ Gravmag System melted. 03885_ P-60 Hacker destroyed. Map ----- +----------------------------------------------------+ | ??????????????????????????????????????????? | | ??????????????????????????????????????????? | | ??????????????????????????????????????????? | | ??????????????????????????????????????????? | | ??????????????????????????????????????????? | | ??????????????????????????????????????????? | | ??????????????????????????????????????????? | | ??????????????????????????????????????????? | | ??????????????????????????????????????????? | | ??????????????????????????????????????????? | | ??????????????????????????????????????????? | | ??????????????????????????????????????????? | | ??????????????????????????????????????????? | | ??????????????????????????????????????????? | | ??????????????????????????????????????????? | | ??????????????????????????????????????????? | | ??????????????????????????????????????????? | | ??????????????????????????????????????????? | | ??????????????????????????????????????????? | | ??????????????????????????????????????????? | | ??????????????????????????????????????????? | | ??????????????????????????????????????????? | | ?????????????????????????#####????????????? | | ????######??????????????## !#????????????? | | ????? #?????##### ####!* !#????????????? | | ?????? Y !@|! #????????????? | | ??????# #?????##### ####!!! #????????????? | | ??????# #??????????????##%=!#????????????? | | ??????# #???????????????##p#######???????? | | ??????# #????????????????#Y##! / ????????? | | ??????# #????????????????#Y##! #?????????? | | ??????# #???######"""##### ## ### #??????? | | ??????# #???# #??????? | | ??????# #???# ######### ##### ### #??????? | | ####### #???# #???????# #"#?#! #?????????? | | ##### #???????# !"#?#! / ????????? | | #???????#!! #?######???????? | | ## #### #######???????#[!"#??????????????? | | ?# #??# #?????????????#=#"#??????????????? | | ?# "??# #?????????????#%###??????????????? | | ?# T#?# #?????????????#+#????????????????? | | ?#""#?# #####?????????#=#????????????????? | | ?####?# ! #?????????# #??#??##?????????? | | ??????# ## !#?????????# ## # ###???????? | | ??????# ##!!#?????????# #???????? | | ??????# #####?????????# #??????? | | ??????# #????????????# #?????? | | ??????# ############## # #?????? | | ??????# # #?????? | | ??????# # #?????? | +----------------------------------------------------+ Best States ------------- Heat Dissipation 45 Energy Generation 18 Energy Capacity 275 Matter Stores 300 Matter Capacity 300 Sight Range 16 Terrain Scan Density 10 Armor Coverage 150 Resistance: EM 15 Evasion (%) 40 Targeting Accuracy 12 Recoil Reduction 3 Item Schematics ----------------- None Robot Schematics ------------------ None Fabricated ------------ Nothing Repaired ---------- Nothing Studied --------- Lgt. Treads | -8/Materials | Hacked Lgt. Cannon | -8/Materials | Hacked Alien Tech Used ----------------- None Achievements -------------- Fist Fight Challenges ------------ None Game ------ Seed CompositeCommPropulsion Manual? 0 Play Time 00:33:22 Cumulative 50.4 hours Start 2026.07.13 @ 11:45:17 End 2026.07.13 @ 16:46:55 Sessions 3 Manual Loads 0 Difficulty Rogue Special Mode None Game No. 99 Rogue 99 Adventurer 0 Explorer 0 Win Type - Total 0 Types 0/0/0/0/0/0/0/0/0/0 Lore% 28 Gallery% 33 Achievement% 27 Wizard Run 0 Options --------- Layout 2 ASCII 0 Keyboard 0 Movement Mouse Keybinds 0 Fullscreen 1 Font 48/Smallcaps Map View 50x44 Zoom Use 0% Tactical HUD 1 Map Filters NONE Filters NONE Steam 1 RUN: 98257e41-b9af-44c9-b844-a4d700a122c0